bitfinex/quotes_ETHUSD_20241109
["timestamp","ask_amount","ask_price","bid_price","bid_amount"]
[1731173289137,0.7686,3011.1,3009.4,2.78826827]
[1731173289337,0.01,3010.9,3009.4,2.78826827]
[1731173289643,0.7586,3010.8,3009.4,2.78826827]
[1731173290163,0.7566,3010.6,3009.4,2.78826827]
[1731173290343,0.7566,3010.6,3009.1,3.32]
[1731173290548,0.01,3010.5,3009.1,3.32]
[1731173290703,0.7566,3010.4,3009.1,3.32]
[1731173291107,0.7566,3010.4,3009.3,2.78826827]
[1731173292101,0.7566,3010.4,3009.4,0.06645623]
[1731173292463,0.7566,3010.4,3009.7,3.0]
[1731173294000,0.7566,3010.4,3009.3,0.55]
[1731173294177,0.7566,3010.4,3009.5,3.0]
[1731173296899,0.7566,3010.4,3008.9,0.7997]
[1731173297106,0.7566,3010.4,3009.0,2.78826827]
[1731173297394,0.7566,3010.4,3009.3,2.78826827]
[1731173300086,0.7566,3010.4,3009.4,0.06645568]
[1731173300718,0.7566,3010.4,3009.4,3.06645568]
[1731173301773,0.7566,3010.4,3009.6,2.78826827]
[1731173301974,0.7566,3010.4,3009.7,3.06644408]
[1731173302214,0.7566,3010.4,3009.5,0.55]
[1731173302405,0.7566,3010.4,3009.4,3.0]
[1731173303489,0.7566,3010.4,3008.8,6.10826827]
[1731173304472,0.7566,3010.4,3008.9,3.06646065]
[1731173304674,0.7566,3010.4,3009.1,2.78826827]
[1731173304904,0.7566,3010.4,3009.2,0.06645631]
[1731173305224,0.7566,3010.4,3009.4,2.78826827]
[1731173309099,0.7566,3010.4,3009.2,3.0]
[1731173309911,0.7566,3010.4,3009.2,3.06645521]
[1731173312201,0.7566,3010.4,3009.2,3.0]
[1731173312402,0.7566,3010.4,3009.3,0.06645242]
[1731173313918,0.7566,3010.4,3009.2,3.0]
[1731173314852,0.7566,3010.4,3009.3,0.06645227]
[1731173315248,0.7566,3010.4,3009.2,3.0]
[1731173315448,0.7566,3010.4,3009.3,0.06645222]
[1731173318024,0.7566,3010.4,3009.7,2.78826827]
[1731173318469,0.7566,3010.4,3009.8,0.0664435]
[1731173319779,0.7566,3010.4,3010.0,2.78826827]
[1731173320068,12.09859375,3011.5,3010.1,3.06643493]
[1731173320368,0.8041,3011.4,3010.7,2.78826827]
[1731173320749,0.8041,3011.4,3010.1,2.78826827]
[1731173320951,0.8041,3011.4,3010.2,3.55]
[1731173321523,0.8041,3011.4,3010.4,0.8164]
[1731173321868,1.70986934,3013.2,3011.2,2.78826827]
[1731173321869,0.8041,3012.8,3011.2,2.78826827]
[1731173322028,0.8041,3012.6,3011.3,3.06641081]
[1731173322224,0.8041,3012.6,3011.3,3.0]
[1731173322447,0.8041,3012.6,3011.4,0.06640629]
[1731173322871,0.8041,3012.6,3011.5,2.78826827]
[1731173323023,0.8041,3012.6,3011.6,0.06640248]
[1731173324077,0.8041,3012.6,3011.6,3.0]
[1731173324240,0.8041,3012.6,3011.8,2.78826827]
[1731173324445,0.8041,3012.6,3011.9,3.0]
[1731173324661,0.8041,3012.6,3011.9,3.06639819]
[1731173326937,0.8041,3012.6,3011.9,3.0]
[1731173327272,0.8041,3012.6,3011.9,3.06639389]
[1731173328133,0.8041,3013.7,3011.9,3.06639389]
[1731173328340,0.8041,3013.5,3012.5,2.78826827]
[1731173329062,0.8041,3013.5,3012.2,5.78826827]
[1731173331768,0.8041,3013.5,3012.5,2.78826827]
[1731173332538,0.8041,3013.5,3012.6,3.0]
[1731173333436,0.7985,3013.9,3012.8,0.7563]
[1731173333644,0.7985,3013.9,3013.1,2.78826827]
[1731173334790,0.7985,3013.9,3012.8,3.54456827]
[1731173335175,0.7985,3013.9,3012.9,3.0]
[1731173336447,0.7985,3013.9,3012.6,3.55]
[1731173336787,0.7985,3013.9,3012.6,3.0]
[1731173337759,0.7985,3013.9,3012.4,0.7563]
[1731173337966,0.7985,3013.9,3012.5,3.33826827]
[1731173338264,0.7985,3013.9,3012.6,3.0]
[1731173338665,0.7985,3013.9,3012.8,3.54456827]
[1731173338866,0.7985,3013.9,3013.1,2.78826827]
[1731173340176,0.7985,3013.9,3012.9,0.06637635]
[1731173340389,0.7985,3013.9,3012.9,2.78826827]
[1731173340593,0.7985,3013.9,3013.0,3.0]
[1731173340778,0.7985,3013.9,3012.5,0.55]
[1731173340779,0.7985,3013.9,3012.6,3.0]
[1731173341269,0.7985,3013.9,3012.4,3.0]
[1731173341854,0.7985,3013.9,3012.1,0.7563]
[1731173342051,0.7985,3013.9,3012.2,2.78826827]
[1731173342293,12.89709375,3013.9,3011.8,1.61499664]
[1731173342493,0.7985,3013.6,3011.9,2.78826827]
[1731173343291,0.7985,3013.6,3012.0,2.78826827]
[1731173344024,0.7985,3013.6,3012.1,3.0663913]
[1731173345454,0.7985,3013.6,3012.2,2.78826827]
[1731173345664,0.7985,3013.6,3012.3,3.06639119]
[1731173346296,0.7985,3013.6,3012.6,3.55]
[1731173347288,0.7985,3013.6,3012.8,2.78826827]
[1731173347596,0.7985,3013.6,3012.9,3.06637124]
[1731173348151,0.7985,3013.6,3013.0,0.55]
[1731173349584,0.7985,3013.6,3012.9,3.0]
[1731173349987,0.7985,3013.6,3012.8,3.0]
[1731173351308,0.7985,3013.6,3012.9,0.06637115]
[1731173351504,0.7985,3013.6,3012.8,3.0]
[1731173354240,0.7985,3013.6,3012.5,0.7563]
[1731173354409,0.7985,3013.6,3012.7,3.0]
[1731173356716,0.7985,3013.6,3012.2,0.8066]
[1731173356898,0.7985,3013.6,3012.5,3.0]
[1731173359104,0.7985,3013.6,3012.6,0.06638082]
[1731173359335,0.7985,3013.6,3013.0,2.78826827]
[1731173360744,0.7985,3013.6,3013.1,3.06637328]
[1731173360901,0.7985,3013.6,3013.1,3.0]
[1731173361097,0.7985,3013.6,3013.1,3.06636582]
[1731173362240,0.7504,3013.9,3013.4,3.0]
[1731173362448,0.7504,3013.9,3013.5,0.06636093]
[1731173368258,0.7504,3013.9,3013.5,3.06636093]
[1731173369728,0.7504,3013.9,3013.5,3.0]
[1731173369971,0.7504,3013.9,3013.1,2.78826827]
[1731173370180,0.7504,3013.9,3013.2,3.0]
[1731173370531,0.1379537,3014.8,3013.2,3.0]
[1731173370532,0.1379537,3014.8,3013.9,19.47]
[1731173370771,0.1379537,3014.8,3014.7,7.15566827]
[1731173371038,0.1379537,3014.8,3014.7,5.78826827]
[1731173371260,0.1379537,3014.8,3014.5,3.0]
[1731173371874,0.1379537,3014.8,3014.7,6.33826827]
[1731173372442,0.1379537,3014.8,3014.7,5.78826827]
[1731173373238,0.1379537,3014.8,3014.7,6.33826827]
[1731173374036,0.1379537,3014.8,3014.7,5.78826827]
[1731173378688,0.7842,3016.6,3014.9,0.55]
[1731173378891,0.7842,3016.6,3015.2,2.78826827]
[1731173379568,0.7942,3016.6,3014.9,5.78826827]
[1731173379773,0.30586562,3016.5,3014.9,5.78826827]
[1731173380083,0.7842,3016.4,3015.0,0.06632646]
[1731173380256,0.7842,3016.4,3014.9,5.78826827]
[1731173380752,0.7842,3016.3,3014.7,3.0]
[1731173380952,0.7842,3016.1,3014.6,2.78826827]
[1731173382268,0.7842,3016.1,3014.7,3.0]
[1731173382577,0.55,3016.0,3014.6,2.78826827]
[1731173382780,0.7842,3015.9,3014.6,2.78826827]
[1731173383986,0.7842,3015.9,3014.3,3.0]
[1731173383987,0.7842,3015.9,3014.9,2.78826827]
[1731173384281,0.7842,3015.9,3014.6,2.78826827]
[1731173385193,0.7842,3015.9,3014.4,3.0]
[1731173385979,0.55,3015.9,3014.4,3.0]
[1731173386150,0.05005938,3015.8,3014.4,3.0]
[1731173386551,0.05005938,3015.8,3014.6,2.78826827]
[1731173387591,0.05005938,3015.8,3014.3,2.78826827]
[1731173387752,0.05005938,3015.8,3014.4,3.06634073]
[1731173387962,10.70865313,3016.0,3014.4,3.06634073]
[1731173388203,1.37793923,3015.9,3014.4,3.06634073]
[1731173388428,1.07186531,3015.9,3014.4,3.0]
[1731173388912,10.08672317,3016.0,3014.4,3.06634069]
[1731173389206,0.1975,3015.9,3014.4,3.06634069]
[1731173389964,6.28422317,3016.0,3014.4,3.06634069]
[1731173390201,0.62942232,3015.9,3014.4,3.06634069]
[1731173390472,4.91364549,3016.0,3014.4,3.06634069]
[1731173390686,2.91364549,3016.0,3014.4,3.06634069]
[1731173391066,0.91364549,3016.0,3014.4,3.06634069]
[1731173391415,0.90364549,3016.0,3014.7,1.3157]
[1731173391609,0.04973529,3016.6,3014.8,3.2086651]
[1731173391907,15.36,3016.7,3014.8,3.2086651]
[1731173392313,13.36,3016.7,3014.8,3.2086651]
[1731173392617,13.01563886,3016.7,3014.8,3.2086651]
[1731173392779,0.55,3016.6,3014.8,3.2086651]
[1731173392968,12.249192,3016.7,3014.9,0.55]
[1731173393509,10.249192,3016.7,3014.9,0.55]
[1731173394006,3.0,3016.6,3014.9,0.55]
[1731173394206,1.0249192,3016.5,3014.9,0.55]
[1731173395486,3.0,3016.7,3014.9,0.55]
[1731173396377,2.69903568,3016.8,3014.9,0.55]
[1731173396577,2.69903568,3016.8,3014.9,3.55]
[1731173396791,0.69903568,3016.8,3014.9,3.55]
[1731173397665,0.78826827,3016.6,3014.9,3.55]
[1731173397903,0.69903568,3016.8,3014.9,1.02360968]
[1731173398114,2.78826827,3016.7,3014.8,0.56]
[1731173398276,3.0,3016.6,3014.8,0.56]
[1731173399014,2.78826827,3016.7,3014.8,0.56]
[1731173399311,0.78826827,3016.7,3014.8,0.56]
[1731173399508,0.4487304,3016.6,3014.8,0.56]
[1731173399706,0.78826827,3016.7,3014.8,0.56]
[1731173400081,0.68547238,3016.7,3014.8,0.55]
[1731173400396,2.78826827,3016.2,3014.3,3.7657]
[1731173400821,0.30777765,3016.1,3015.5,2.79826827]
[1731173401016,1.36710629,3017.5,3015.6,1.1118402]
[1731173401311,2.78826827,3017.3,3015.6,0.7657]
[1731173401475,0.30787063,3017.2,3015.6,0.7657]
[1731173401671,0.34616163,3017.5,3015.3,3.0]
[1731173401672,0.78826827,3017.0,3015.3,3.0]
[1731173401887,0.30787063,3016.9,3015.2,0.7657]
[1731173402089,0.55,3017.3,3015.2,0.7657]
[1731173402289,2.78826827,3016.8,3014.9,1.3157]
[1731173402473,2.78826827,3016.6,3014.9,0.7657]
[1731173402818,2.78826827,3016.2,3014.5,0.7657]
[1731173403023,3.33826827,3016.8,3014.5,0.7657]
[1731173403024,2.78826827,3015.9,3014.5,0.7657]
[1731173403189,1.0670951,3015.9,3014.5,0.7657]
[1731173403378,1.0670951,3015.9,3014.5,0.01]
[1731173403592,3.0,3016.1,3014.6,0.7657]
[1731173403798,3.0,3016.4,3014.6,0.83203496]
[1731173404000,3.0,3016.4,3014.6,3.62030323]
[1731173404424,0.57882683,3016.3,3014.7,0.36303032]
[1731173405287,0.57882683,3016.3,3014.6,0.7657]
[1731173405482,2.78826827,3016.1,3014.6,0.7657]
[1731173406181,2.78826827,3016.1,3014.3,0.7657]
[1731173406820,2.78826827,3016.1,3014.3,3.7657]
[1731173407021,0.55,3016.2,3014.3,3.7757]
[1731173407225,0.93385657,3016.1,3014.4,0.65639683]
[1731173408027,0.93385657,3016.1,3014.7,2.78826827]
[1731173408233,2.22292683,3016.3,3014.7,2.78826827]
[1731173408435,1.6441,3016.3,3014.7,2.78826827]
[1731173409023,1.6441,3016.3,3014.8,3.7657]
[1731173409226,1.6441,3016.3,3015.1,3.7657]
[1731173409897,1.03126989,3016.7,3015.1,3.7657]
[1731173410086,0.68755347,3016.5,3015.1,3.7657]
[1731173410325,0.68755347,3016.5,3015.2,0.65539683]
[1731173410745,0.68755347,3016.4,3015.3,0.7637]
[1731173410903,0.68755347,3016.8,3015.9,0.7637]
[1731173411230,0.68755347,3016.9,3015.9,0.7637]
[1731173411428,0.68755347,3017.0,3016.0,0.7637]
[1731173411627,0.73729222,3017.1,3016.0,0.7637]
[1731173411927,0.04973875,3017.1,3016.0,0.7637]
[1731173412694,0.04973875,3017.1,3016.8,2.78826827]
[1731173412913,0.04973875,3017.1,3016.1,0.7637]
[1731173413243,0.04973875,3017.1,3016.5,3.7637]
[1731173413605,0.04973875,3017.1,3016.5,0.7637]
[1731173414002,0.04973875,3017.1,3015.8,2.78826827]
[1731173414230,0.04973875,3017.1,3015.9,3.0]
[1731173414409,0.04973875,3017.1,3015.9,3.65519683]
[1731173414625,0.04973875,3017.1,3016.4,2.78826827]
[1731173415012,0.04973875,3017.1,3016.3,0.7637]
[1731173415817,0.30698375,3017.0,3016.3,0.7637]
[1731173416046,0.04973875,3017.1,3016.3,0.7637]
[1731173416228,0.30689098,3017.0,3016.3,0.7637]
[1731173416433,0.04973875,3017.1,3016.0,3.55196827]
[1731173416742,0.30680409,3017.0,3016.0,1.48441651]
[1731173417041,0.04973875,3017.1,3016.0,0.7637]
[1731173417240,0.30679355,3017.0,3016.0,0.7637]
[1731173417542,0.30673323,3016.9,3016.0,0.7637]
[1731173417728,0.30673323,3016.8,3016.0,0.7637]
[1731173418048,0.68755347,3017.0,3016.0,15.7637]
[1731173418049,0.30673323,3016.7,3016.0,15.7637]
[1731173418199,0.30673323,3016.9,3016.0,15.7637]
[1731173418406,0.30673599,3016.8,3016.0,15.0]
[1731173418719,0.30673599,3016.7,3016.0,15.0]
[1731173418914,0.30673599,3016.6,3016.0,15.0]
[1731173419114,0.68755347,3016.9,3016.0,15.0]
[1731173419313,0.30672528,3016.8,3016.0,15.0]
[1731173419614,0.30672528,3016.7,3016.0,15.0]
[1731173419815,4.18328831,3017.1,3016.0,15.0]
[1731173419816,3.83957189,3017.1,3016.0,15.0]
[1731173420144,1.78138836,3017.0,3016.0,15.0]
[1731173420303,0.30675071,3016.9,3016.0,15.0]
[1731173420500,0.30675071,3016.8,3016.0,15.0]
[1731173420726,0.30675071,3016.7,3016.0,15.0]
[1731173420930,1.47463765,3017.0,3016.0,15.0]
[1731173421104,0.3067816,3016.9,3016.0,15.0]
[1731173421318,0.3067816,3016.8,3016.0,15.0]
[1731173421516,0.30680449,3016.7,3016.1,0.7637]
[1731173421732,0.73729222,3017.1,3016.1,0.7637]
[1731173421902,0.30680589,3017.0,3016.1,0.7637]
[1731173422109,0.30680589,3016.9,3016.0,15.0]
[1731173422309,0.30680589,3016.8,3016.0,15.0]
[1731173422544,0.30680589,3016.7,3016.0,15.0]
[1731173422756,0.38323664,3016.9,3016.0,15.0]
[1731173422916,0.30676514,3016.8,3016.0,15.0]
[1731173423249,0.30676514,3016.7,3016.0,15.0]
[1731173423455,0.30676514,3016.6,3016.0,15.0]
[1731173423611,0.38323664,3016.9,3016.0,15.0]
[1731173423612,0.30676514,3016.8,3016.0,15.0]
[1731173423947,0.30677452,3016.7,3016.0,15.0]
[1731173424159,0.30677452,3016.6,3016.0,15.0]
[1731173424356,0.38323664,3016.9,3016.0,15.0]
[1731173424645,0.30678453,3016.8,3016.0,15.0]
[1731173424842,0.30678453,3016.7,3016.0,15.0]
[1731173425003,0.30678453,3016.6,3016.0,15.0]
[1731173425205,0.30678453,3016.5,3016.0,15.0]
[1731173425474,0.38323664,3016.9,3016.0,15.0]
[1731173425677,0.30680422,3016.8,3016.0,15.0]
[1731173425837,0.30677936,3016.7,3016.0,15.0]
[1731173426043,0.30677936,3016.6,3016.0,15.0]
[1731173426351,0.38323664,3016.9,3016.0,15.0]
[1731173426551,0.3067989,3016.8,3016.0,15.0]
[1731173426791,0.3067989,3016.7,3016.0,15.0]
[1731173426940,0.3067989,3016.6,3016.0,15.0]
[1731173427141,0.38323664,3016.9,3016.0,15.0]
[1731173427342,0.30680084,3016.8,3016.0,15.0]
[1731173427648,0.30680084,3016.7,3016.0,15.0]
[1731173427979,0.30680084,3016.6,3016.0,15.0]
[1731173428177,0.38323664,3016.9,3016.0,15.0]
[1731173428379,0.30685186,3016.8,3016.0,15.0]
[1731173428569,0.30685186,3016.7,3016.0,15.0]
[1731173428776,0.30685186,3016.6,3016.0,15.0]
[1731173429140,0.38323664,3016.9,3016.0,15.0]
[1731173429376,0.30697185,3016.8,3016.0,15.0]
[1731173429579,0.30697453,3016.7,3016.0,15.0]
[1731173429777,0.30697453,3016.6,3016.0,15.0]
[1731173430082,0.30697453,3016.5,3016.0,15.0]
[1731173430288,0.38323664,3016.9,3016.0,15.0]
[1731173430471,0.30700488,3016.8,3016.0,15.0]
[1731173430787,0.30700488,3016.7,3016.0,15.0]
[1731173430992,0.30700488,3016.6,3016.0,15.0]
[1731173431303,0.30700488,3016.5,3016.0,15.0]
[1731173431525,0.68755347,3017.0,3016.0,15.0]
[1731173431790,0.78387086,3016.9,3016.0,15.0]
[1731173432099,0.30701465,3016.8,3016.0,15.0]
[1731173432244,0.30701465,3016.7,3016.0,15.0]
[1731173432571,0.30701465,3016.6,3016.0,15.0]
[1731173432779,0.30701465,3016.5,3016.0,15.0]
[1731173432946,1.16440968,3016.9,3016.0,15.0]
[1731173433290,0.30699986,3016.8,3016.0,15.0]
[1731173433444,0.30699986,3016.7,3016.0,15.0]
[1731173433785,0.30699986,3016.6,3016.0,15.0]
[1731173433987,0.30699986,3016.5,3016.0,15.0]
[1731173434299,0.30719869,3016.4,3016.0,15.0]
[1731173434592,1.16440968,3016.9,3016.0,16.57637]
[1731173434786,0.30730895,3016.8,3016.0,16.57637]
[1731173435100,0.30730895,3016.7,3016.0,16.57637]
[1731173435380,0.30730895,3016.6,3016.0,16.57637]
[1731173435584,0.30730895,3016.5,3016.0,16.57637]
[1731173435882,0.30730895,3016.4,3016.0,16.57637]
[1731173436084,1.16440968,3016.9,3016.0,16.57637]
[1731173436286,0.30747014,3016.8,3016.0,16.57637]
[1731173436587,0.30747014,3016.7,3016.0,16.57637]
[1731173436749,0.30747014,3016.6,3016.0,16.57637]
[1731173436949,0.30747014,3016.5,3016.0,16.57637]
[1731173437182,1.16440968,3016.9,3016.0,16.57637]
[1731173437345,0.52735066,3016.8,3016.0,15.0]
[1731173437689,0.3077827,3016.7,3016.0,15.0]
[1731173437855,0.3077827,3016.6,3016.0,15.0]
[1731173438040,0.3077827,3016.5,3016.0,15.0]
[1731173438245,0.3077827,3016.4,3016.0,15.0]
[1731173438459,0.3077827,3016.3,3016.0,15.0]
[1731173438695,0.21956796,3016.8,3016.0,15.0]
[1731173438862,0.30773158,3016.7,3016.0,15.0]
[1731173439063,0.30773158,3016.6,3016.0,15.0]
[1731173439389,0.21956796,3016.8,3016.0,15.0]
[1731173439390,0.30773158,3016.5,3016.1,0.8313]
[1731173439592,0.30773158,3016.4,3016.1,0.8313]
[1731173439741,0.30773158,3016.3,3016.1,0.8313]
[1731173439943,0.21956796,3016.8,3016.1,0.8313]
[1731173440194,0.3077219,3016.7,3016.1,0.8313]
[1731173440388,0.21956796,3016.8,3016.1,0.8313]
[1731173440591,0.30773242,3016.7,3016.1,0.8313]
[1731173440763,0.30773242,3016.6,3016.1,0.8313]
[1731173440962,0.30773242,3016.5,3016.1,0.8313]
[1731173441167,0.30773242,3016.4,3016.1,0.8313]
[1731173441474,0.30773242,3016.3,3016.1,0.8313]
[1731173441678,0.21956796,3016.8,3016.1,0.8313]
[1731173441880,0.30774443,3016.7,3016.1,0.8313]
[1731173442052,0.30774443,3016.6,3016.1,0.8313]
[1731173442255,0.30774443,3016.5,3016.1,0.8313]
[1731173442454,0.30774443,3016.4,3016.1,0.8313]
[1731173442797,0.68755347,3017.0,3016.1,0.8313]
[1731173443007,0.30775925,3016.9,3016.1,2.41443]
[1731173443293,0.30775925,3016.8,3016.1,2.41443]
[1731173443495,0.30775925,3016.7,3016.1,2.41443]
[1731173443682,0.30775925,3016.6,3016.1,0.8313]
[1731173443878,0.30775925,3016.5,3016.1,0.8313]
[1731173444050,0.30775925,3016.4,3016.1,0.8313]
[1731173444263,0.30775925,3016.3,3016.1,0.8313]
[1731173444462,0.68755347,3016.9,3016.1,0.8313]
[1731173444710,0.30793013,3016.8,3016.1,0.8313]
[1731173444880,0.30793013,3016.7,3016.1,2.41443]
[1731173445064,0.30793013,3016.6,3016.1,2.41443]
[1731173445266,0.30793013,3016.5,3016.1,2.41443]
[1731173445610,0.30793013,3016.4,3016.1,2.41443]
[1731173445767,0.68755347,3017.0,3016.2,1.741443]
[1731173445962,1.08100864,3017.1,3016.3,0.8313]
[1731173445963,0.30800533,3016.9,3016.3,0.8313]
[1731173446266,0.30800533,3016.8,3016.3,0.8313]
[1731173446513,0.30800533,3016.7,3016.3,0.8313]
[1731173446715,0.30800533,3016.6,3016.3,1.0885743]
[1731173447023,0.30800533,3016.5,3016.3,1.0885743]
[1731173447160,0.04973875,3017.1,3016.4,0.8313]
[1731173447366,0.30805539,3017.0,3016.4,0.8313]
[1731173447806,0.30805539,3016.9,3016.4,0.8313]
[1731173448044,0.04973875,3017.1,3016.6,0.8313]
[1731173448318,0.30794547,3017.0,3016.6,0.8313]
[1731173448465,0.30794547,3016.9,3016.6,0.8313]
[1731173448664,0.04973875,3017.1,3016.6,0.8313]
[1731173448907,0.30779439,3017.0,3016.6,0.8313]
[1731173449082,0.30779439,3016.9,3016.6,0.8313]
[1731173449289,0.04973875,3017.1,3016.6,0.8313]
[1731173449608,0.30770911,3017.0,3016.6,0.8313]
[1731173449819,0.30770911,3016.9,3016.6,0.8313]
[1731173450018,0.04973875,3017.1,3016.6,0.8313]
[1731173451855,0.04973875,3017.1,3016.8,0.7733]
[1731173453765,0.04973875,3017.1,3017.0,0.7733]
[1731173454081,0.04973875,3017.1,3017.0,0.83958409]
[1731173454568,0.04973875,3017.1,3017.0,4.75436933]
[1731173454769,0.04973875,3017.1,3017.0,4.75436528]
[1731173455106,0.04973875,3017.1,3017.0,1.13808524]
[1731173455320,0.04973875,3017.1,3017.0,0.7733]
[1731173456916,0.04973875,3017.1,3017.0,1.3233]
[1731173458082,0.04973875,3017.1,3017.0,4.3233]
[1731173459909,0.04973875,3017.1,3017.0,0.7733]
[1731173460109,0.005,3017.6,3017.0,0.7733]
[1731173461307,0.30666927,3017.5,3016.6,0.7733]
[1731173461508,0.005,3017.6,3016.6,0.7733]
[1731173461720,0.3066406,3017.5,3016.6,0.7733]
[1731173462029,3.09487975,3017.4,3016.1,0.7733]
[1731173462230,0.61609946,3017.3,3016.2,1.57733]
[1731173462453,2.78826827,3017.1,3016.1,0.7733]
[1731173462750,0.30661148,3017.0,3016.1,0.7733]
[1731173462924,0.30661148,3016.9,3016.1,0.7733]
[1731173463243,2.78826827,3017.1,3016.1,0.7733]
[1731173463244,0.30661148,3016.8,3016.1,0.7733]
[1731173463410,0.30661148,3016.7,3016.1,0.7733]
[1731173463609,3.47582174,3017.1,3016.1,0.7733]
[1731173463818,0.75731324,3017.0,3016.1,0.7733]
[1731173464019,0.30660408,3016.9,3016.1,0.7733]
[1731173464226,0.30650575,3016.8,3016.1,0.7733]
[1731173464617,0.30650575,3016.7,3016.1,0.7733]
[1731173464823,0.45070916,3017.0,3016.1,0.7733]
[1731173465032,0.69915255,3016.9,3016.1,0.7733]
[1731173465248,0.30649946,3016.8,3016.1,0.83960211]
[1731173465450,0.30948798,3017.3,3016.1,0.83960211]
[1731173465749,0.30656698,3017.2,3016.1,3.84960211]
[1731173466047,0.69255347,3017.6,3016.2,0.7733]
[1731173466249,0.69255347,3017.6,3016.3,0.06629834]
[1731173466250,0.30657654,3017.5,3016.3,0.06629834]
[1731173466546,0.30657654,3017.4,3016.3,0.06629834]
[1731173466709,0.30657654,3017.3,3016.3,0.06629834]
[1731173466910,0.69255347,3017.6,3016.3,0.45225817]
[1731173467111,0.30662032,3017.5,3016.4,0.7733]
[1731173467426,0.005,3017.6,3016.4,0.7733]
[1731173467427,0.30662032,3017.4,3016.4,0.7833]
[1731173467637,0.005,3017.6,3016.4,0.7833]
[1731173467848,0.30666996,3017.5,3016.6,0.02]
[1731173468148,0.005,3017.6,3016.7,0.7733]
[1731173469012,0.30671893,3017.5,3016.7,0.7733]
[1731173469211,0.005,3017.6,3016.7,0.7733]
[1731173469427,0.30673407,3017.5,3016.7,0.7733]
[1731173469631,0.30673407,3017.4,3016.7,0.7733]
[1731173469828,0.005,3017.6,3016.7,0.7733]
[1731173470109,0.30673631,3017.5,3016.7,0.7733]
[1731173470368,0.005,3017.6,3016.7,0.7833]
[1731173470729,0.005,3017.6,3016.9,0.759]
[1731173471576,0.30673391,3017.5,3016.9,0.759]
[1731173471782,0.30673391,3017.4,3016.9,0.759]
[1731173471952,0.005,3017.6,3016.9,0.759]
[1731173472146,0.30674276,3017.5,3016.9,0.759]
[1731173472475,0.005,3017.6,3016.9,0.759]
[1731173472685,0.30678631,3017.5,3016.9,0.759]
[1731173472977,0.005,3017.6,3016.9,0.759]
[1731173473333,0.30682237,3017.5,3016.9,0.759]
[1731173473633,0.005,3017.6,3016.9,0.759]
[1731173473847,0.30682345,3017.5,3016.9,0.759]
[1731173474064,0.005,3017.6,3016.9,0.759]
[1731173474479,0.30690108,3017.5,3017.0,0.06628406]
[1731173474679,2.4,3017.5,3017.0,0.06628406]
[1731173474864,2.4,3017.5,3016.9,0.759]
[1731173475066,2.65429537,3017.5,3016.9,0.759]
[1731173475383,0.30694208,3017.4,3016.6,0.759]
[1731173475585,0.30694208,3017.3,3016.6,0.759]
[1731173475889,0.30695736,3017.2,3016.6,0.759]
[1731173476083,2.65429537,3017.5,3016.6,0.759]
[1731173476385,3.36115341,3017.4,3016.6,0.759]
[1731173476588,2.78826827,3017.1,3016.3,0.759]
[1731173476809,0.3069556,3017.0,3016.3,0.759]
[1731173476951,0.3069556,3016.9,3016.3,0.759]
[1731173477152,0.3069556,3016.8,3016.3,0.759]
[1731173477383,0.3069556,3016.7,3016.3,0.759]
[1731173477552,0.30952239,3017.0,3016.3,0.759]
[1731173477751,0.30691942,3016.9,3016.3,0.759]
[1731173478071,0.30691942,3016.8,3016.3,0.759]
[1731173478272,0.30691942,3016.7,3016.3,0.759]
[1731173478442,0.30691942,3016.7,3016.0,15.759]
[1731173478648,0.30691942,3016.6,3016.0,15.759]
[1731173478894,0.30977907,3016.9,3016.0,15.759]
[1731173479104,0.30684779,3016.8,3016.0,15.759]
[1731173479250,0.30684779,3016.7,3016.0,17.3359]
[1731173479451,0.68755347,3017.2,3016.0,17.3359]
[1731173479745,0.30689314,3017.1,3016.0,17.3359]
[1731173479950,0.30689314,3017.0,3016.0,17.3359]
[1731173480193,0.30689314,3016.9,3016.0,17.3359]
[1731173480490,0.30689314,3016.8,3016.1,1.73459]
[1731173480696,0.30689314,3016.7,3016.0,15.759]
[1731173481001,0.68755347,3017.2,3016.0,15.759]
[1731173481153,0.30708621,3017.1,3016.0,15.759]
[1731173481500,0.30708621,3017.0,3016.0,15.759]
[1731173481701,0.30708621,3016.9,3016.0,15.759]
[1731173481853,0.30708621,3016.8,3016.0,15.759]
[1731173482057,0.30703474,3016.7,3016.0,15.759]
[1731173482268,0.30703474,3016.6,3016.0,15.759]
[1731173482467,0.3782908,3016.9,3016.0,15.759]
[1731173482664,3.09523878,3016.8,3016.0,15.759]
[1731173482893,0.65432347,3016.7,3016.0,15.759]
[1731173483051,0.30697051,3016.6,3016.0,15.759]
[1731173483246,0.30697051,3016.5,3016.0,15.759]
[1731173483555,0.3068714,3016.4,3016.0,15.759]
[1731173483777,0.34735296,3016.7,3016.0,15.759]
[1731173483987,0.68919253,3016.6,3016.0,15.759]
[1731173484152,0.30687506,3016.5,3016.0,15.759]
[1731173484354,0.38231747,3016.6,3016.0,15.759]
[1731173484675,0.30684429,3016.5,3016.0,15.759]
[1731173484879,0.38231747,3016.6,3016.0,15.759]
[1731173485078,0.30683825,3016.5,3016.0,15.759]
[1731173485278,0.68755347,3017.0,3016.0,17.3349]
[1731173485460,0.30681402,3016.9,3016.0,15.759]
[1731173485877,0.30681402,3016.8,3016.0,15.759]
[1731173486074,0.30681402,3016.7,3016.0,15.759]
[1731173486307,0.30681402,3016.6,3016.0,15.759]
[1731173486511,0.68755347,3017.0,3016.0,15.759]
[1731173486714,0.47883717,3016.9,3016.0,15.759]
[1731173486914,0.30695483,3016.8,3016.0,15.759]
[1731173487120,0.30695483,3016.7,3016.0,15.759]
[1731173487433,0.30695483,3016.6,3016.0,15.759]
[1731173487571,0.68755347,3017.0,3016.0,15.759]
[1731173487773,0.30698712,3016.9,3016.0,15.759]
[1731173488005,0.30698712,3016.8,3016.0,15.759]